[Event "*** Titled Tuesday Blitz"]
[Site "Chess.com"]
[Date "2019.08.06"]
[Round "10"]
[White "KhazarBabazada"]
[Black "Annawel"]
[Result "1-0"]
[WhiteElo "2858"]
[BlackElo "2980"]
[TimeControl "180+2"]
[EndTime "15:27:15 PDT"]
[Termination "KhazarBabazada won on time"]

1. e4 {[%clk 0:03:01.9]} 1... c5 {[%clk 0:03:00.7]} 2. Nf3 {[%clk 0:03:02.9]}
2... d6 {[%clk 0:03:01.8]} 3. d4 {[%clk 0:03:03]} 3... cxd4 {[%clk 0:03:03.7]}
4. Nxd4 {[%clk 0:03:03.2]} 4... Nf6 {[%clk 0:03:03.9]} 5. Nc3 {[%clk 0:03:04.7]}
5... a6 {[%clk 0:03:01.1]} 6. h3 {[%clk 0:03:06]} 6... e6 {[%clk 0:03:01.8]} 7.
g4 {[%clk 0:03:05.7]} 7... h6 {[%clk 0:03:02.9]} 8. f4 {[%clk 0:03:05.5]} 8...
Nc6 {[%clk 0:03:01.2]} 9. Be3 {[%clk 0:03:06.1]} 9... d5 {[%clk 0:02:55.4]} 10.
e5 {[%clk 0:03:04.2]} 10... Nd7 {[%clk 0:02:56.6]} 11. Qd2 {[%clk 0:03:04.7]}
11... g5 {[%clk 0:02:49.4]} 12. O-O-O {[%clk 0:03:03.2]} 12... Bg7 {[%clk
0:02:45.5]} 13. fxg5 {[%clk 0:02:57.5]} 13... hxg5 {[%clk 0:02:46.5]} 14. Bxg5
{[%clk 0:02:58.2]} 14... Qc7 {[%clk 0:02:47.8]} 15. Nf5 {[%clk 0:02:52.5]} 15...
Bxe5 {[%clk 0:02:38.8]} 16. Bg2 {[%clk 0:02:46.4]} 16... Nb6 {[%clk 0:02:33.1]}
17. Rhe1 {[%clk 0:02:40.7]} 17... Nc4 {[%clk 0:02:34.3]} 18. Qe2 {[%clk
0:02:36.8]} 18... Qb6 {[%clk 0:02:24.1]} 19. b3 {[%clk 0:02:21.3]} 19... Bxc3
{[%clk 0:02:08.1]} 20. Bxd5 {[%clk 0:02:20.8]} 20... O-O {[%clk 0:01:26.4]} 21.
Bxc4 {[%clk 0:02:21.3]} 21... Qb4 {[%clk 0:01:19]} 22. Kb1 {[%clk 0:02:16.2]}
22... b5 {[%clk 0:01:00.9]} 23. Nh6+ {[%clk 0:01:42.6]} 23... Kg7 {[%clk
0:00:58.2]} 24. Bd3 {[%clk 0:01:37.9]} 24... f6 {[%clk 0:00:59.3]} 25. Bc1
{[%clk 0:01:36]} 25... Ra7 {[%clk 0:00:57.3]} 26. a3 {[%clk 0:01:36.5]} 26...
Qc5 {[%clk 0:00:53.9]} 27. Qe4 {[%clk 0:01:37.6]} 27... Kh8 {[%clk 0:00:50.3]}
28. Rf1 {[%clk 0:01:29.7]} 28... Be5 {[%clk 0:00:42.1]} 29. Bb2 {[%clk
0:01:21.7]} 29... Bxb2 {[%clk 0:00:40.3]} 30. Kxb2 {[%clk 0:01:23.6]} 30... Ne5
{[%clk 0:00:34.9]} 31. g5 {[%clk 0:01:09.2]} 31... Nxd3+ {[%clk 0:00:06.4]} 32.
Rxd3 {[%clk 0:00:55.2]} 32... Qxg5 {[%clk 0:00:08.3]} 33. Ng4 {[%clk 0:00:55.7]}
33... f5 {[%clk 0:00:08.8]} 34. Qd4+ {[%clk 0:00:55.7]} 34... Rg7 {[%clk
0:00:08.6]} 35. Ne5 {[%clk 0:00:56.1]} 35... Bb7 {[%clk 0:00:10.1]} 36. Rdd1
{[%clk 0:00:52.6]} 36... Qf6 {[%clk 0:00:08.2]} 37. Rg1 {[%clk 0:00:49.9]} 37...
Rfg8 {[%clk 0:00:09.4]} 38. Rxg7 {[%clk 0:00:33.5]} 38... Rxg7 {[%clk
0:00:11.3]} 39. Qd8+ {[%clk 0:00:27.5]} 39... Qxd8 {[%clk 0:00:12.8]} 40. Rxd8+
{[%clk 0:00:28.8]} 40... Kh7 {[%clk 0:00:14.7]} 41. Re8 {[%clk 0:00:23.3]} 41...
Kh6 {[%clk 0:00:16]} 42. Rxe6+ {[%clk 0:00:23.3]} 42... Kg5 {[%clk 0:00:17.9]}
43. Nd3 {[%clk 0:00:21.4]} 43... Rh7 {[%clk 0:00:15.4]} 44. c4 {[%clk
0:00:21.2]} 44... bxc4 {[%clk 0:00:15.8]} 45. bxc4 {[%clk 0:00:23.1]} 45... Rxh3
{[%clk 0:00:16.1]} 46. Nc5 {[%clk 0:00:23.1]} 46... Bg2 {[%clk 0:00:17.6]} 47.
Nxa6 {[%clk 0:00:20.2]} 47... f4 {[%clk 0:00:19.2]} 48. Nc5 {[%clk 0:00:19.7]}
48... f3 {[%clk 0:00:14.6]} 49. Ne4+ {[%clk 0:00:20.7]} 49... Kf4 {[%clk
0:00:16.1]} 50. c5 {[%clk 0:00:19.8]} 50... Rh2 {[%clk 0:00:15.8]} 51. Kc3
{[%clk 0:00:20.3]} 51... Bh3 {[%clk 0:00:17.4]} 52. Re7 {[%clk 0:00:18.2]} 52...
Bf5 {[%clk 0:00:18.7]} 53. Nd2 {[%clk 0:00:18]} 53... f2 {[%clk 0:00:19.1]} 54.
c6 {[%clk 0:00:17.6]} 54... Rh1 {[%clk 0:00:20.2]} 55. Re2 {[%clk 0:00:15.4]}
55... Kg3 {[%clk 0:00:21.6]} 56. Re3+ {[%clk 0:00:14]} 56... Kg2 {[%clk
0:00:21.2]} 57. Rf3 {[%clk 0:00:11.5]} 57... Bg4 {[%clk 0:00:22.7]} 58. Rf6
{[%clk 0:00:12.2]} 58... Rc1+ {[%clk 0:00:22.5]} 59. Kb2 {[%clk 0:00:11.3]}
59... Rd1 {[%clk 0:00:18.5]} 60. Kc2 {[%clk 0:00:12.2]} 60... Ra1 {[%clk
0:00:18.4]} 61. Kb2 {[%clk 0:00:11.8]} 61... Rd1 {[%clk 0:00:19.3]} 62. Kc2
{[%clk 0:00:13.3]} 62... Re1 {[%clk 0:00:10.8]} 63. c7 {[%clk 0:00:10.9]} 63...
Re7 {[%clk 0:00:09.9]} 64. Rc6 {[%clk 0:00:12]} 64... Re2 {[%clk 0:00:08.8]} 65.
Rg6 {[%clk 0:00:10.3]} 65... Kh3 {[%clk 0:00:08.1]} 66. Rxg4 {[%clk 0:00:10.6]}
66... f1=Q {[%clk 0:00:09.1]} 67. c8=Q {[%clk 0:00:07.8]} 67... Rxd2+ {[%clk
0:00:03.8]} 68. Kxd2 {[%clk 0:00:09.7]} 68... Qf2+ {[%clk 0:00:05.5]} 69. Kc1
{[%clk 0:00:09.5]} 69... Qe1+ {[%clk 0:00:04.9]} 70. Kb2 {[%clk 0:00:10.5]}
70... Qe2+ {[%clk 0:00:04.3]} 71. Kb3 {[%clk 0:00:10.9]} 71... Qd1+ {[%clk
0:00:04.3]} 72. Kb2 {[%clk 0:00:08.9]} 72... Qe2+ {[%clk 0:00:04.9]} 73. Kc3
{[%clk 0:00:09.5]} 73... Qe1+ {[%clk 0:00:05.1]} 74. Kb3 {[%clk 0:00:09.2]}
74... Qd1+ {[%clk 0:00:03.7]} 75. Kb4 {[%clk 0:00:07.5]} 75... Qe1+ {[%clk
0:00:02.7]} 76. Qc3+ {[%clk 0:00:07.7]} 76... Qxc3+ {[%clk 0:00:03.6]} 77. Kxc3
{[%clk 0:00:09.6]} 77... Kxg4 {[%clk 0:00:05.5]} 78. a4 {[%clk 0:00:11.2]} 78...
Kf5 {[%clk 0:00:07.4]} 79. a5 {[%clk 0:00:06.9]} 79... Ke6 {[%clk 0:00:09.2]}
80. a6 {[%clk 0:00:08.8]} 80... Kd7 {[%clk 0:00:11.1]} 81. a7 {[%clk 0:00:10.4]}
81... Kc7 {[%clk 0:00:13]} 82. a8=Q {[%clk 0:00:12.3]} 82... Kb6 {[%clk
0:00:14.9]} 83. Qg2 {[%clk 0:00:13.9]} 83... Kb5 {[%clk 0:00:16.8]} 84. Kd4
{[%clk 0:00:15.8]} 84... Ka5 {[%clk 0:00:18.7]} 85. Qb7 {[%clk 0:00:16.1]} 85...
Ka4 {[%clk 0:00:19.8]} 86. Kc4 {[%clk 0:00:16.1]} 1-0